[Event "Titled Tuesday Blitz January 03 Early 2023"]
[White "Suduvasachmatai"]
[Black "Topalov, Aleksandar"]
[BlackFideId "925659"]
[WhiteElo "2107"]
[BlackElo "2233"]
[Result "0-1"]
[Round "05"]
[TimeControl "180+2"]
[Date "2023.01.03"]
[WhiteClock "0:01:19"]
[BlackClock "0:01:22"]

1. e4 {[%clk 0:03:00]}  e6 {[%clk 0:02:59]} 2. d4 {[%clk 0:03:00]}  d5 {[%clk 0:02:59]} 3. e5 {[%clk 0:03:00]}  Ne7 {[%clk 0:02:59]} 4. Bd3 {[%clk 0:02:59]}  Qd7 {[%clk 0:02:59]} 5. c3 {[%clk 0:02:59]}  b6 {[%clk 0:02:58]} 6. Nf3 {[%clk 0:03:00]}  Ba6 {[%clk 0:02:58]} 7. Bxa6 {[%clk 0:02:57]}  Nxa6 {[%clk 0:02:59]} 8. O-O {[%clk 0:02:57]}  c5 {[%clk 0:02:56]} 9. Be3 {[%clk 0:02:56]}  Nf5 {[%clk 0:02:55]} 10. Qe2 {[%clk 0:02:54]}  Nb8 {[%clk 0:02:54]} 11. Nbd2 {[%clk 0:02:54]}  Nc6 {[%clk 0:02:54]} 12. h3 {[%clk 0:02:51]}  Be7 {[%clk 0:02:54]} 13. a4 {[%clk 0:02:48]}  O-O {[%clk 0:02:53]} 14. dxc5 {[%clk 0:02:48]}  Nxe3 {[%clk 0:02:47]} 15. fxe3 {[%clk 0:02:44]}  bxc5 {[%clk 0:02:39]} 16. e4 {[%clk 0:02:40]}  Rab8 {[%clk 0:02:31]} 17. Rfb1 {[%clk 0:02:32]}  d4 {[%clk 0:02:09]} 18. cxd4 {[%clk 0:02:17]}  Nxd4 {[%clk 0:02:07]} 19. Nxd4 {[%clk 0:02:08]}  Qxd4+ {[%clk 0:02:06]} 20. Kh1 {[%clk 0:02:06]}  Rxb2 {[%clk 0:02:01]} 21. Rxb2 {[%clk 0:02:02]}  Qxb2 {[%clk 0:02:01]} 22. Rb1 {[%clk 0:02:01]}  Qa2 {[%clk 0:02:01]} 23. Qd1 {[%clk 0:01:57]}  Rd8 {[%clk 0:01:59]} 24. Qc1 {[%clk 0:01:50]}  Qxd2 {[%clk 0:01:49]} 25. Qxd2 {[%clk 0:01:44]}  Rxd2 {[%clk 0:01:49]} 26. Rb7 {[%clk 0:01:45]}  Rd8 {[%clk 0:01:46]} 27. Rxe7 {[%clk 0:01:42]}  Rc8 {[%clk 0:01:46]} 28. Rxa7 {[%clk 0:01:39]}  c4 {[%clk 0:01:46]} 29. Rb7 {[%clk 0:01:39]}  c3 {[%clk 0:01:47]} 30. Rb1 {[%clk 0:01:39]}  c2 {[%clk 0:01:46]} 31. Rc1 {[%clk 0:01:39]}  g5 {[%clk 0:01:42]} 32. a5 {[%clk 0:01:39]}  Ra8 {[%clk 0:01:35]} 33. Rxc2 {[%clk 0:01:37]}  Rxa5 {[%clk 0:01:35]} 34. Rc4 {[%clk 0:01:34]}  Rxe5 {[%clk 0:01:34]} 35. Kh2 {[%clk 0:01:35]}  h5 {[%clk 0:01:33]} 36. Kg3 {[%clk 0:01:35]}  Kg7 {[%clk 0:01:33]} 37. Kf3 {[%clk 0:01:35]}  Kg6 {[%clk 0:01:34]} 38. g4 {[%clk 0:01:33]}  h4 {[%clk 0:01:34]} 39. Rc8 {[%clk 0:01:32]}  Ra5 {[%clk 0:01:32]} 40. Rc3 {[%clk 0:01:29]}  Kf6 {[%clk 0:01:32]} 41. Ke3 {[%clk 0:01:28]}  Ra1 {[%clk 0:01:28]} 42. Kf2 {[%clk 0:01:24]}  Ke5 {[%clk 0:01:26]} 43. Re3 {[%clk 0:01:22]}  Ra2+ {[%clk 0:01:22]} 44. Kf3 {[%clk 0:01:19]}  Rh2 {[%clk 0:01:22]} 45. Re1 {[%clk 0:01:19]}  Rxh3+ {[%clk 0:01:22]} 0-1


[Site "https://www.chess.com"]

[Event "Titled Tuesday Blitz January 03 Early 2023"]
[White "Mitrovic, Darko R"]
[Black "Dinu, Dumitru-Daniel"]
[WhiteFideId "927023"]
[BlackFideId "1208403"]
[WhiteElo "2220"]
[BlackElo "2203"]
[Result "0-1"]
[Round "05"]
[TimeControl "180+2"]
[Date "2023.01.03"]
[WhiteClock "0:00:02"]
[BlackClock "0:00:12"]

1. d4 {[%clk 0:02:59]}  Nf6 {[%clk 0:02:59]} 2. Nf3 {[%clk 0:02:58]}  e6 {[%clk 0:03:00]} 3. g3 {[%clk 0:02:59]}  d5 {[%clk 0:03:00]} 4. Bg2 {[%clk 0:02:58]}  Bd6 {[%clk 0:03:00]} 5. O-O {[%clk 0:02:59]}  O-O {[%clk 0:03:01]} 6. b3 {[%clk 0:02:57]}  c6 {[%clk 0:03:00]} 7. c4 {[%clk 0:02:57]}  Nbd7 {[%clk 0:03:00]} 8. Nc3 {[%clk 0:02:57]}  Qe7 {[%clk 0:02:59]} 9. Qc2 {[%clk 0:02:56]}  b6 {[%clk 0:02:52]} 10. e4 {[%clk 0:02:56]}  dxe4 {[%clk 0:02:52]} 11. Nxe4 {[%clk 0:02:56]}  Nxe4 {[%clk 0:02:52]} 12. Qxe4 {[%clk 0:02:57]}  Bb7 {[%clk 0:02:48]} 13. Bf4 {[%clk 0:02:21]}  Nf6 {[%clk 0:02:43]} 14. Bxd6 {[%clk 0:02:19]}  Qxd6 {[%clk 0:02:42]} 15. Qe5 {[%clk 0:02:08]}  Rfd8 {[%clk 0:02:31]} 16. Qxd6 {[%clk 0:02:03]}  Rxd6 {[%clk 0:02:30]} 17. Rac1 {[%clk 0:01:19]}  c5 {[%clk 0:02:18]} 18. dxc5 {[%clk 0:01:16]}  bxc5 {[%clk 0:02:18]} 19. Rfd1 {[%clk 0:01:03]}  Rad8 {[%clk 0:02:17]} 20. Rxd6 {[%clk 0:01:03]}  Rxd6 {[%clk 0:02:16]} 21. Kf1 {[%clk 0:01:03]}  Kf8 {[%clk 0:01:39]} 22. Ke1 {[%clk 0:01:00]}  Ke7 {[%clk 0:01:38]} 23. Rd1 {[%clk 0:00:54]}  Rxd1+ {[%clk 0:01:38]} 24. Kxd1 {[%clk 0:00:53]}  Ne4 {[%clk 0:01:38]} 25. Ke1 {[%clk 0:00:44]}  Kd6 {[%clk 0:01:06]} 26. Ng5 {[%clk 0:00:32]}  Nxg5 {[%clk 0:00:56]} 27. Bxb7 {[%clk 0:00:31]}  f6 {[%clk 0:00:55]} 28. f4 {[%clk 0:00:26]}  Nf7 {[%clk 0:00:51]} 29. Ke2 {[%clk 0:00:23]}  e5 {[%clk 0:00:49]} 30. Bd5 {[%clk 0:00:18]}  Nh6 {[%clk 0:00:45]} 31. Kf3 {[%clk 0:00:13]}  exf4 {[%clk 0:00:41]} 32. Kxf4 {[%clk 0:00:10]}  g5+ {[%clk 0:00:41]} 33. Ke4 {[%clk 0:00:09]}  f5+ {[%clk 0:00:37]} 34. Ke3 {[%clk 0:00:08]}  Ke5 {[%clk 0:00:37]} 35. Kf3 {[%clk 0:00:07]}  Ng4 {[%clk 0:00:28]} 36. h3 {[%clk 0:00:06]}  Nf6 {[%clk 0:00:28]} 37. Bf7 {[%clk 0:00:06]}  Ne4 {[%clk 0:00:16]} 38. Bg8 {[%clk 0:00:04]}  h6 {[%clk 0:00:16]} 39. Bd5 {[%clk 0:00:03]}  Nd2+ {[%clk 0:00:15]} 40. Ke2 {[%clk 0:00:02]}  Ne4 {[%clk 0:00:15]} 41. Kf3 {[%clk 0:00:02]}  Nc3 {[%clk 0:00:15]} 42. Bg8 {[%clk 0:00:02]}  Nxa2 {[%clk 0:00:15]} 43. h4 {[%clk 0:00:02]}  gxh4 {[%clk 0:00:13]} 44. gxh4 {[%clk 0:00:02]}  Nc1 {[%clk 0:00:14]} 45. b4 {[%clk 0:00:01]}  cxb4 {[%clk 0:00:13]} 46. c5 {[%clk 0:00:02]}  Nb3 {[%clk 0:00:12]} 0-1


[Site "https://www.chess.com"]

[Event "Titled Tuesday Blitz January 03 Early 2023"]
[White "Guevara Sanchez, Erick Marvin"]
[Black "Chernov, Mikhail"]
[WhiteFideId "6700136"]
[BlackFideId "24143170"]
[WhiteElo "2073"]
[BlackElo "2205"]
[Result "0-1"]
[Round "05"]
[TimeControl "180+2"]
[Date "2023.01.03"]
[WhiteClock "0:00:25"]
[BlackClock "0:01:18"]

1. e4 {[%clk 0:03:00]}  c5 {[%clk 0:02:55]} 2. Nf3 {[%clk 0:03:00]}  Nc6 {[%clk 0:02:55]} 3. d4 {[%clk 0:03:01]}  cxd4 {[%clk 0:02:52]} 4. Nxd4 {[%clk 0:03:02]}  Nf6 {[%clk 0:02:52]} 5. Nc3 {[%clk 0:03:01]}  d6 {[%clk 0:02:53]} 6. Be3 {[%clk 0:02:54]}  Ng4 {[%clk 0:02:52]} 7. Bb5 {[%clk 0:02:49]}  Nxe3 {[%clk 0:02:44]} 8. Nxc6 {[%clk 0:02:47]}  Nxd1 {[%clk 0:02:45]} 9. Nxd8+ {[%clk 0:02:46]}  Kxd8 {[%clk 0:02:46]} 10. Rxd1 {[%clk 0:02:46]}  a6 {[%clk 0:02:46]} 11. Bc4 {[%clk 0:02:44]}  e6 {[%clk 0:02:47]} 12. O-O {[%clk 0:02:44]}  Kc7 {[%clk 0:02:47]} 13. a4 {[%clk 0:02:42]}  b6 {[%clk 0:02:38]} 14. f3 {[%clk 0:02:39]}  Be7 {[%clk 0:02:37]} 15. Ne2 {[%clk 0:02:32]}  Bb7 {[%clk 0:02:35]} 16. Bd3 {[%clk 0:02:17]}  Bf6 {[%clk 0:02:32]} 17. b4 {[%clk 0:02:14]}  Bc6 {[%clk 0:02:29]} 18. b5 {[%clk 0:02:04]}  axb5 {[%clk 0:02:30]} 19. axb5 {[%clk 0:02:05]}  Bb7 {[%clk 0:02:21]} 20. Nc1 {[%clk 0:01:55]}  Ra3 {[%clk 0:02:11]} 21. Nb3 {[%clk 0:01:54]}  Rha8 {[%clk 0:02:06]} 22. f4 {[%clk 0:01:53]}  Ra2 {[%clk 0:02:03]} 23. e5 {[%clk 0:01:52]}  Be7 {[%clk 0:02:02]} 24. exd6+ {[%clk 0:01:49]}  Bxd6 {[%clk 0:02:03]} 25. g3 {[%clk 0:01:44]}  R8a3 {[%clk 0:02:00]} 26. Ra1 {[%clk 0:01:39]}  Bc5+ {[%clk 0:01:57]} 27. Nxc5 {[%clk 0:01:29]}  Rxa1 {[%clk 0:01:57]} 28. Nb3 {[%clk 0:01:24]}  Rxf1+ {[%clk 0:01:51]} 29. Kxf1 {[%clk 0:01:23]}  Bd5 {[%clk 0:01:49]} 30. Nd4 {[%clk 0:01:20]}  Ra1+ {[%clk 0:01:47]} 31. Kf2 {[%clk 0:01:18]}  Rh1 {[%clk 0:01:48]} 32. h4 {[%clk 0:01:16]}  Kd6 {[%clk 0:01:43]} 33. c4 {[%clk 0:01:06]}  Kc5 {[%clk 0:01:41]} 34. cxd5 {[%clk 0:00:59]}  Kxd4 {[%clk 0:01:41]} 35. d6 {[%clk 0:00:53]}  Ra1 {[%clk 0:01:34]} 36. Be2 {[%clk 0:00:51]}  Ra7 {[%clk 0:01:28]} 37. Bf3 {[%clk 0:00:44]}  Rd7 {[%clk 0:01:29]} 38. Bc6 {[%clk 0:00:43]}  Rxd6 {[%clk 0:01:29]} 39. Kf3 {[%clk 0:00:40]}  f6 {[%clk 0:01:27]} 40. Kg4 {[%clk 0:00:39]}  e5 {[%clk 0:01:23]} 41. Kf5 {[%clk 0:00:36]}  g6+ {[%clk 0:01:23]} 42. Kg4 {[%clk 0:00:32]}  e4 {[%clk 0:01:24]} 43. f5 {[%clk 0:00:30]}  gxf5+ {[%clk 0:01:18]} 44. Kxf5 {[%clk 0:00:29]}  e3 {[%clk 0:01:18]} 45. Bf3 {[%clk 0:00:27]}  Kd3 {[%clk 0:01:15]} 46. Kf4 {[%clk 0:00:17]}  e2 {[%clk 0:01:13]} 47. Bxe2+ {[%clk 0:00:17]}  Kxe2 {[%clk 0:01:14]} 48. g4 {[%clk 0:00:18]}  Rd5 {[%clk 0:01:14]} 49. g5 {[%clk 0:00:19]}  fxg5+ {[%clk 0:01:14]} 50. hxg5 {[%clk 0:00:20]}  Rxb5 {[%clk 0:01:15]} 51. Kg4 {[%clk 0:00:19]}  Rc5 {[%clk 0:01:14]} 52. Kh5 {[%clk 0:00:20]}  b5 {[%clk 0:01:14]} 53. Kh6 {[%clk 0:00:21]}  b4 {[%clk 0:01:15]} 54. Kxh7 {[%clk 0:00:22]}  Rxg5 {[%clk 0:01:15]} 55. Kh6 {[%clk 0:00:21]}  Rg2 {[%clk 0:01:15]} 56. Kh7 {[%clk 0:00:22]}  b3 {[%clk 0:01:16]} 57. Kh6 {[%clk 0:00:23]}  b2 {[%clk 0:01:17]} 58. Kh7 {[%clk 0:00:24]}  b1=Q+ {[%clk 0:01:18]} 59. Kh6 {[%clk 0:00:25]}  Qh1# {[%clk 0:01:18]} 0-1


[Site "https://www.chess.com"]

[Event "Titled Tuesday Blitz January 03 Early 2023"]
[White "Eisa Mohmood, Alkhoori"]
[Black "Dwilewicz, Katarzyna"]
[WhiteFideId "9316116"]
[BlackFideId "1148486"]
[WhiteElo "1095"]
[BlackElo "2115"]
[Result "0-1"]
[Round "05"]
[TimeControl "180+2"]
[Date "2023.01.03"]
[WhiteClock "0:00:09"]
[BlackClock "0:01:02"]

1. d4 {[%clk 0:03:00]}  d5 {[%clk 0:02:59]} 2. g3 {[%clk 0:02:55]}  Nf6 {[%clk 0:02:52]} 3. Bg2 {[%clk 0:02:53]}  c6 {[%clk 0:02:49]} 4. Nf3 {[%clk 0:02:53]}  g6 {[%clk 0:02:46]} 5. O-O {[%clk 0:02:54]}  Bg7 {[%clk 0:02:47]} 6. c4 {[%clk 0:02:46]}  O-O {[%clk 0:02:47]} 7. b3 {[%clk 0:02:40]}  dxc4 {[%clk 0:02:43]} 8. bxc4 {[%clk 0:02:40]}  c5 {[%clk 0:02:42]} 9. Bb2 {[%clk 0:02:28]}  cxd4 {[%clk 0:02:40]} 10. Nxd4 {[%clk 0:02:07]}  Qb6 {[%clk 0:02:39]} 11. Nb3 {[%clk 0:02:05]}  Rd8 {[%clk 0:02:30]} 12. N1d2 {[%clk 0:02:03]}  Nc6 {[%clk 0:02:26]} 13. c5 {[%clk 0:01:55]}  Qc7 {[%clk 0:02:19]} 14. e3 {[%clk 0:01:46]}  a5 {[%clk 0:02:19]} 15. a4 {[%clk 0:01:40]}  Bf5 {[%clk 0:02:14]} 16. e4 {[%clk 0:01:35]}  Bxe4 {[%clk 0:02:05]} 17. Bxe4 {[%clk 0:01:17]}  Nxe4 {[%clk 0:02:05]} 18. Bxg7 {[%clk 0:01:18]}  Kxg7 {[%clk 0:02:04]} 19. Qc2 {[%clk 0:01:11]}  Nxd2 {[%clk 0:02:04]} 20. Nxd2 {[%clk 0:01:07]}  Nd4 {[%clk 0:01:56]} 21. Qb2 {[%clk 0:01:06]}  e5 {[%clk 0:01:51]} 22. Ne4 {[%clk 0:00:50]}  Qc6 {[%clk 0:01:43]} 23. f3 {[%clk 0:00:39]}  Nxf3+ {[%clk 0:01:21]} 24. Rxf3 {[%clk 0:00:36]}  Qxe4 {[%clk 0:01:22]} 25. Raf1 {[%clk 0:00:19]}  f5 {[%clk 0:01:19]} 26. Rf4 {[%clk 0:00:11]}  Qe3+ {[%clk 0:01:16]} 27. R4f2 {[%clk 0:00:11]}  Rd7 {[%clk 0:01:10]} 28. Qb5 {[%clk 0:00:09]}  Rc7 {[%clk 0:01:06]} 29. c6 {[%clk 0:00:08]}  bxc6 {[%clk 0:01:03]} 30. Qb3 {[%clk 0:00:09]}  Qxb3 {[%clk 0:01:02]} 0-1


[Site "https://www.chess.com"]

[Event "Titled Tuesday Blitz January 03 Early 2023"]
[White "De Souza, Cristiano Gomes"]
[Black "Melikhov, Evgeny V."]
[WhiteFideId "2151758"]
[BlackFideId "4122046"]
[WhiteElo "2018"]
[BlackElo "2269"]
[Result "1/2-1/2"]
[Round "05"]
[TimeControl "180+2"]
[Date "2023.01.03"]
[WhiteClock "0:01:33"]
[BlackClock "0:00:59"]

1. d4 {[%clk 0:03:00]}  Nf6 {[%clk 0:02:58]} 2. c4 {[%clk 0:03:00]}  e6 {[%clk 0:02:58]} 3. Nf3 {[%clk 0:03:00]}  d5 {[%clk 0:02:58]} 4. Nc3 {[%clk 0:03:00]}  Bb4 {[%clk 0:02:57]} 5. Bg5 {[%clk 0:02:59]}  h6 {[%clk 0:02:57]} 6. Bxf6 {[%clk 0:02:59]}  Qxf6 {[%clk 0:02:58]} 7. Rc1 {[%clk 0:03:00]}  O-O {[%clk 0:02:55]} 8. e3 {[%clk 0:03:00]}  Nc6 {[%clk 0:02:42]} 9. Be2 {[%clk 0:02:59]}  dxc4 {[%clk 0:02:42]} 10. Bxc4 {[%clk 0:02:59]}  Bd6 {[%clk 0:02:42]} 11. O-O {[%clk 0:02:57]}  e5 {[%clk 0:02:41]} 12. Ne4 {[%clk 0:02:57]}  Qe7 {[%clk 0:02:40]} 13. Nxd6 {[%clk 0:02:56]}  cxd6 {[%clk 0:02:38]} 14. dxe5 {[%clk 0:02:55]}  dxe5 {[%clk 0:02:31]} 15. Bd5 {[%clk 0:02:54]}  Bg4 {[%clk 0:02:22]} 16. h3 {[%clk 0:02:49]}  Bxf3 {[%clk 0:02:19]} 17. Qxf3 {[%clk 0:02:49]}  Rab8 {[%clk 0:01:59]} 18. Bxc6 {[%clk 0:02:35]}  bxc6 {[%clk 0:01:58]} 19. b3 {[%clk 0:02:35]}  c5 {[%clk 0:01:56]} 20. Rc4 {[%clk 0:02:35]}  Rb4 {[%clk 0:01:54]} 21. Rfc1 {[%clk 0:02:33]}  Rxc4 {[%clk 0:01:53]} 22. Rxc4 {[%clk 0:02:34]}  Rd8 {[%clk 0:01:45]} 23. Qc6 {[%clk 0:02:19]}  Rd2 {[%clk 0:01:42]} 24. Rxc5 {[%clk 0:02:02]}  Rxa2 {[%clk 0:01:30]} 25. Qc8+ {[%clk 0:02:02]}  Kh7 {[%clk 0:01:28]} 26. Qf5+ {[%clk 0:02:02]}  g6 {[%clk 0:01:28]} 27. Qxe5 {[%clk 0:01:59]}  Qxe5 {[%clk 0:01:26]} 28. Rxe5 {[%clk 0:01:59]}  Rb2 {[%clk 0:01:24]} 29. Re7 {[%clk 0:01:54]}  Kg7 {[%clk 0:01:23]} 30. Rxa7 {[%clk 0:01:54]}  Rxb3 {[%clk 0:01:23]} 31. Kh2 {[%clk 0:01:54]}  h5 {[%clk 0:01:23]} 32. Kg3 {[%clk 0:01:54]}  Rc3 {[%clk 0:01:23]} 33. Kf3 {[%clk 0:01:54]}  Rb3 {[%clk 0:01:22]} 34. g4 {[%clk 0:01:54]}  hxg4+ {[%clk 0:01:22]} 35. hxg4 {[%clk 0:01:55]}  Rc3 {[%clk 0:01:22]} 36. Kf4 {[%clk 0:01:55]}  Rc2 {[%clk 0:01:21]} 37. f3 {[%clk 0:01:55]}  Rc5 {[%clk 0:01:21]} 38. e4 {[%clk 0:01:55]}  g5+ {[%clk 0:01:19]} 39. Ke3 {[%clk 0:01:54]}  Kg6 {[%clk 0:01:18]} 40. Rd7 {[%clk 0:01:52]}  f6 {[%clk 0:01:16]} 41. Rd5 {[%clk 0:01:50]}  Rc4 {[%clk 0:01:15]} 42. Rd6 {[%clk 0:01:49]}  Rc5 {[%clk 0:01:14]} 43. Kd4 {[%clk 0:01:49]}  Ra5 {[%clk 0:01:13]} 44. Rd5 {[%clk 0:01:47]}  Ra4+ {[%clk 0:01:12]} 45. Ke3 {[%clk 0:01:47]}  Rb4 {[%clk 0:01:10]} 46. Rd6 {[%clk 0:01:46]}  Rb5 {[%clk 0:01:09]} 47. f4 {[%clk 0:01:43]}  gxf4+ {[%clk 0:01:09]} 48. Kxf4 {[%clk 0:01:43]}  Ra5 {[%clk 0:01:09]} 49. Re6 {[%clk 0:01:39]}  Rb5 {[%clk 0:00:59]} 50. e5 {[%clk 0:01:32]}  Rxe5 {[%clk 0:00:58]} 51. Rxe5 {[%clk 0:01:33]}  fxe5+ {[%clk 0:00:58]} 52. Kxe5 {[%clk 0:01:34]}  Kg5 {[%clk 0:00:59]} 53. Ke4 {[%clk 0:01:33]}  Kxg4 {[%clk 0:00:59]} 1/2-1/2


[Site "https://www.chess.com"]

[Event "Titled Tuesday Blitz January 03 Early 2023"]
[White "Larina, Maria"]
[Black "Wilson, Elvin"]
[WhiteFideId "24113182"]
[BlackFideId "2014874"]
[WhiteElo "1948"]
[BlackElo "2183"]
[Result "0-1"]
[Round "05"]
[TimeControl "180+2"]
[Date "2023.01.03"]
[WhiteClock "0:00:10"]
[BlackClock "0:00:13"]

1. e4 {[%clk 0:03:00]}  e6 {[%clk 0:02:59]} 2. d4 {[%clk 0:03:00]}  d5 {[%clk 0:02:58]} 3. Nc3 {[%clk 0:03:01]}  Bb4 {[%clk 0:02:57]} 4. exd5 {[%clk 0:03:00]}  exd5 {[%clk 0:02:56]} 5. Bd3 {[%clk 0:03:01]}  Nf6 {[%clk 0:02:55]} 6. Ne2 {[%clk 0:03:01]}  O-O {[%clk 0:02:50]} 7. O-O {[%clk 0:03:01]}  Re8 {[%clk 0:02:32]} 8. h3 {[%clk 0:02:59]}  Nbd7 {[%clk 0:02:16]} 9. a3 {[%clk 0:02:59]}  Be7 {[%clk 0:02:11]} 10. Bf4 {[%clk 0:02:57]}  c6 {[%clk 0:02:10]} 11. Qd2 {[%clk 0:02:50]}  Nf8 {[%clk 0:02:10]} 12. Bh2 {[%clk 0:02:45]}  Ng6 {[%clk 0:02:00]} 13. Nf4 {[%clk 0:02:18]}  Nxf4 {[%clk 0:01:45]} 14. Qxf4 {[%clk 0:02:19]}  Be6 {[%clk 0:01:44]} 15. Ne2 {[%clk 0:02:15]}  Qb6 {[%clk 0:01:42]} 16. b4 {[%clk 0:02:12]}  Rad8 {[%clk 0:01:38]} 17. c3 {[%clk 0:01:57]}  Rd7 {[%clk 0:01:33]} 18. Rfe1 {[%clk 0:01:55]}  Qd8 {[%clk 0:01:31]} 19. Ng3 {[%clk 0:01:44]}  Bd6 {[%clk 0:01:24]} 20. Qf3 {[%clk 0:01:45]}  Rde7 {[%clk 0:01:19]} 21. Re2 {[%clk 0:01:30]}  Bxg3 {[%clk 0:01:03]} 22. Bxg3 {[%clk 0:01:23]}  Ne4 {[%clk 0:01:03]} 23. Bxe4 {[%clk 0:01:09]}  dxe4 {[%clk 0:01:02]} 24. Qe3 {[%clk 0:00:53]}  Bc4 {[%clk 0:01:00]} 25. Ree1 {[%clk 0:00:53]}  Qd5 {[%clk 0:00:55]} 26. Be5 {[%clk 0:00:51]}  f6 {[%clk 0:00:52]} 27. Bg3 {[%clk 0:00:47]}  Qf7 {[%clk 0:00:46]} 28. h4 {[%clk 0:00:44]}  Rf8 {[%clk 0:00:43]} 29. Qf4 {[%clk 0:00:42]}  Bd5 {[%clk 0:00:39]} 30. a4 {[%clk 0:00:37]}  h6 {[%clk 0:00:27]} 31. a5 {[%clk 0:00:21]}  a6 {[%clk 0:00:26]} 32. Re3 {[%clk 0:00:19]}  f5 {[%clk 0:00:24]} 33. Ree1 {[%clk 0:00:15]}  Qh5 {[%clk 0:00:24]} 34. Qd6 {[%clk 0:00:12]}  Re6 {[%clk 0:00:24]} 35. Qc7 {[%clk 0:00:10]}  Rf7 {[%clk 0:00:24]} 36. Qd8+ {[%clk 0:00:10]}  Kh7 {[%clk 0:00:24]} 37. Re3 {[%clk 0:00:06]}  f4 {[%clk 0:00:22]} 38. Bxf4 {[%clk 0:00:06]}  Rxf4 {[%clk 0:00:22]} 39. Rg3 {[%clk 0:00:07]}  Rg6 {[%clk 0:00:20]} 40. Rxg6 {[%clk 0:00:06]}  Qxg6 {[%clk 0:00:20]} 41. Re1 {[%clk 0:00:04]}  e3 {[%clk 0:00:20]} 42. f3 {[%clk 0:00:04]}  Rxf3 {[%clk 0:00:19]} 43. Re2 {[%clk 0:00:04]}  Rf2 {[%clk 0:00:19]} 44. Rxf2 {[%clk 0:00:04]}  exf2+ {[%clk 0:00:18]} 45. Kxf2 {[%clk 0:00:05]}  Qxg2+ {[%clk 0:00:17]} 46. Ke3 {[%clk 0:00:05]}  Qf3+ {[%clk 0:00:17]} 47. Kd2 {[%clk 0:00:05]}  Be4 {[%clk 0:00:15]} 48. Qd6 {[%clk 0:00:04]}  Qd3+ {[%clk 0:00:15]} 49. Ke1 {[%clk 0:00:04]}  Qxc3+ {[%clk 0:00:15]} 50. Kf2 {[%clk 0:00:04]}  Qf3+ {[%clk 0:00:15]} 51. Ke1 {[%clk 0:00:05]}  Qe3+ {[%clk 0:00:14]} 52. Kf1 {[%clk 0:00:04]}  Bf3 {[%clk 0:00:13]} 53. Qg3 {[%clk 0:00:03]}  Qe2+ {[%clk 0:00:13]} 54. Kg1 {[%clk 0:00:03]}  Qe4 {[%clk 0:00:12]} 55. Kf2 {[%clk 0:00:03]}  Bh5 {[%clk 0:00:11]} 56. Qh3 {[%clk 0:00:02]}  Qxd4+ {[%clk 0:00:11]} 57. Ke1 {[%clk 0:00:02]}  Qxb4+ {[%clk 0:00:10]} 58. Kf2 {[%clk 0:00:02]}  Qd4+ {[%clk 0:00:09]} 59. Ke1 {[%clk 0:00:02]}  Qe5+ {[%clk 0:00:09]} 60. Kd2 {[%clk 0:00:02]}  Qxa5+ {[%clk 0:00:09]} 61. Ke3 {[%clk 0:00:02]}  Qe5+ {[%clk 0:00:09]} 62. Kf2 {[%clk 0:00:02]}  c5 {[%clk 0:00:09]} 63. Qd3+ {[%clk 0:00:02]}  Bg6 {[%clk 0:00:09]} 64. Qg3 {[%clk 0:00:02]}  Qd4+ {[%clk 0:00:09]} 65. Ke1 {[%clk 0:00:02]}  c4 {[%clk 0:00:09]} 66. Qf2 {[%clk 0:00:02]}  Qd3 {[%clk 0:00:09]} 67. Qd2 {[%clk 0:00:02]}  Qe4+ {[%clk 0:00:09]} 68. Kd1 {[%clk 0:00:01]}  Qd3 {[%clk 0:00:09]} 69. Qxd3 {[%clk 0:00:01]}  Bxd3 {[%clk 0:00:09]} 70. Kd2 {[%clk 0:00:02]}  Kg6 {[%clk 0:00:10]} 71. Kc3 {[%clk 0:00:03]}  Kh5 {[%clk 0:00:10]} 72. Kb4 {[%clk 0:00:04]}  Kxh4 {[%clk 0:00:11]} 73. Kc5 {[%clk 0:00:05]}  Kg3 {[%clk 0:00:11]} 74. Kd4 {[%clk 0:00:05]}  h5 {[%clk 0:00:12]} 75. Ke3 {[%clk 0:00:06]}  h4 {[%clk 0:00:12]} 76. Kd2 {[%clk 0:00:07]}  h3 {[%clk 0:00:13]} 77. Kc3 {[%clk 0:00:08]}  h2 {[%clk 0:00:13]} 78. Kd4 {[%clk 0:00:09]}  h1=Q {[%clk 0:00:13]} 79. Ke3 {[%clk 0:00:10]}  Qf3+ {[%clk 0:00:13]} 0-1


[Site "https://www.chess.com"]

[Event "Titled Tuesday Blitz January 03 Early 2023"]
[White "Butolo, Alexandru-Mircea"]
[Black "Liu, Kelsey"]
[WhiteFideId "1261649"]
[BlackFideId "30944481"]
[WhiteElo "2033"]
[BlackElo "2065"]
[Result "0-1"]
[Round "05"]
[TimeControl "180+2"]
[Date "2023.01.03"]
[WhiteClock "0:00:01"]
[BlackClock "0:00:55"]

1. e4 {[%clk 0:03:00]}  c5 {[%clk 0:03:00]} 2. Nf3 {[%clk 0:02:58]}  e6 {[%clk 0:02:58]} 3. g3 {[%clk 0:02:56]}  Nc6 {[%clk 0:02:58]} 4. Bg2 {[%clk 0:02:56]}  Nf6 {[%clk 0:02:58]} 5. Qe2 {[%clk 0:02:50]}  e5 {[%clk 0:02:55]} 6. O-O {[%clk 0:02:45]}  Be7 {[%clk 0:02:53]} 7. d3 {[%clk 0:02:34]}  O-O {[%clk 0:02:43]} 8. Nc3 {[%clk 0:02:32]}  d6 {[%clk 0:02:41]} 9. Bg5 {[%clk 0:02:32]}  Be6 {[%clk 0:02:26]} 10. Nd2 {[%clk 0:02:17]}  Rc8 {[%clk 0:02:25]} 11. a4 {[%clk 0:02:13]}  Nxe4 {[%clk 0:02:18]} 12. Ndxe4 {[%clk 0:01:37]}  Bxg5 {[%clk 0:02:08]} 13. f4 {[%clk 0:01:31]}  Be7 {[%clk 0:02:07]} 14. f5 {[%clk 0:01:29]}  Nd4 {[%clk 0:02:07]} 15. Qh5 {[%clk 0:01:22]}  Nxf5 {[%clk 0:01:57]} 16. Rxf5 {[%clk 0:01:20]}  g6 {[%clk 0:01:57]} 17. Rg5 {[%clk 0:01:06]}  Bxg5 {[%clk 0:01:57]} 18. Qxg5 {[%clk 0:01:05]}  Qxg5 {[%clk 0:01:57]} 19. Nxg5 {[%clk 0:01:06]}  Kg7 {[%clk 0:01:38]} 20. Nb5 {[%clk 0:00:50]}  Rfd8 {[%clk 0:01:20]} 21. Bxb7 {[%clk 0:00:22]}  Rb8 {[%clk 0:01:20]} 22. Bg2 {[%clk 0:00:18]}  Bf5 {[%clk 0:01:04]} 23. Bd5 {[%clk 0:00:13]}  Rd7 {[%clk 0:01:01]} 24. Rf1 {[%clk 0:00:12]}  h6 {[%clk 0:00:59]} 25. Ne4 {[%clk 0:00:11]}  Bxe4 {[%clk 0:00:57]} 26. dxe4 {[%clk 0:00:09]}  a6 {[%clk 0:00:56]} 27. Nc3 {[%clk 0:00:05]}  Rxb2 {[%clk 0:00:57]} 28. Bc6 {[%clk 0:00:05]}  Rc7 {[%clk 0:00:56]} 29. Bd5 {[%clk 0:00:02]}  Rxc2 {[%clk 0:00:56]} 30. Nd1 {[%clk 0:00:01]}  Ra2 {[%clk 0:00:55]} 0-1


[Site "https://www.chess.com"]